bitfinex/quotes_SOLUSD_20220104
["timestamp","ask_amount","ask_price","bid_price","bid_amount"]
[1641305281619,26.60845116,171.48,171.34,26.1038]
[1641305282019,26.86845116,171.48,171.34,26.1038]
[1641305282318,2.99375116,171.47,171.34,26.1038]
[1641305282526,3.25375116,171.47,171.34,26.1038]
[1641305283320,3.25375116,171.47,171.34,27.53049368]
[1641305284320,1.6146,171.47,171.34,27.27049368]
[1641305285124,3.25375116,171.47,171.34,27.27049368]
[1641305285620,23.91,171.46,171.34,27.53049368]
[1641305286024,24.17,171.46,171.34,27.53049368]
[1641305286221,24.17,171.46,171.34,27.27049368]
[1641305286423,24.17,171.46,171.34,25.8438]
[1641305288824,24.17,171.46,171.34,26.1038]
[1641305289224,23.91,171.46,171.34,34.5038]
[1641305290535,24.17,171.46,171.34,34.5038]
[1641305290742,1.63915116,171.49,171.34,34.5038]
[1641305290941,1.63915116,171.49,171.34,43.03849368]
[1641305291240,1.63915116,171.5,171.34,148.01849368]
[1641305291440,1.63915116,171.5,171.34,182.06633098]
[1641305292044,1.63915116,171.56,171.37,27.35840633]
[1641305292245,1.63915116,171.56,171.38,80.4161]
[1641305292442,1.63915116,171.56,171.38,86.60779368]
[1641305292744,1.63915116,171.56,171.45,2.41904907]
[1641305292943,0.02,171.58,171.45,2.41904907]
[1641305293144,0.02,171.58,171.45,2.67904907]
[1641305293342,8.4,171.6,171.45,2.67904907]
[1641305293542,8.4,171.6,171.45,30.48163707]
[1641305293743,8.4,171.6,171.45,31.76733707]
[1641305294143,8.4,171.6,171.46,8.4]
[1641305294542,8.4,171.6,171.46,8.66]
[1641305295543,32.1476,171.6,171.46,8.66]
[1641305295946,32.9076,171.6,171.46,8.66]
[1641305296144,34.2579,171.6,171.46,8.66]
[1641305296345,33.7579,171.6,171.46,8.66]
[1641305296949,34.2579,171.6,171.46,8.66]
[1641305297686,33.7579,171.6,171.46,8.66]
[1641305298489,1.58095153,171.61,171.47,1.42669368]
[1641305298694,1.58095153,171.61,171.51,2.14620577]
[1641305298892,1.58095153,171.62,171.52,8.4]
[1641305299091,1.58095153,171.62,171.52,10.08669368]
[1641305299290,518.13020532,171.65,171.52,10.08669368]
[1641305299492,518.13020532,171.65,171.53,24.76827964]
[1641305299793,0.02,171.67,171.55,2.54647083]
[1641305300008,0.02,171.67,171.56,8.4]
[1641305301245,0.02,171.67,171.57,25.4849197]
[1641305301431,93.7,171.68,171.58,8.4]
[1641305301630,93.7,171.68,171.59,2.95416864]
[1641305301832,200.0,171.73,171.6,8.4]
[1641305302030,200.0,171.73,171.61,28.46511406]
[1641305302230,200.0,171.73,171.62,8.4]
[1641305302431,200.0,171.73,171.63,2.97173929]
[1641305302829,200.0,171.73,171.62,8.4]
[1641305303032,200.0,171.73,171.61,28.46511406]
[1641305303232,200.26,171.73,171.61,28.46511406]
[1641305303430,200.26,171.73,171.6,1.3322]
[1641305303832,200.26,171.73,171.59,8.4]
[1641305304031,200.26,171.73,171.59,10.68494389]
[1641305305535,200.0,171.73,171.6,23.25915336]
[1641305305732,1.3263,171.72,171.6,23.25915336]
[1641305307034,1.8263,171.72,171.6,23.25915336]
[1641305307333,1.8263,171.72,171.6,23.51915336]
[1641305307734,1.8263,171.72,171.6,23.25915336]
[1641305308136,1.8263,171.72,171.6,31.65915336]
[1641305308335,1.8263,171.72,171.6,8.4]
[1641305309034,2.0863,171.72,171.6,8.4]
[1641305309435,2.75172923,171.71,171.6,8.4]
[1641305309834,3.25172923,171.71,171.6,8.4]
[1641305310536,0.5,171.71,171.6,8.4]
[1641305310737,0.76,171.71,171.6,8.4]
[1641305310934,2.0863,171.72,171.6,8.4]
[1641305311135,1.5863,171.72,171.6,8.4]
[1641305311334,2.0863,171.72,171.6,8.4]
[1641305311737,2.0863,171.72,171.6,9.6977]
[1641305312137,2.0863,171.72,171.6,8.4]
[1641305314240,2.0863,171.72,171.59,2.28494389]
[1641305314439,10.4863,171.72,171.59,2.28494389]
[1641305316845,6.06861291,171.71,171.59,2.28494389]
[1641305317044,6.32861291,171.71,171.59,2.28494389]
[1641305317245,6.82861291,171.71,171.59,2.28494389]
[1641305317646,4.97335844,171.7,171.59,2.28494389]
[1641305317847,6.74735844,171.7,171.59,2.28494389]
[1641305318056,7.00735844,171.7,171.59,2.28494389]
[1641305318848,15.40735844,171.7,171.58,1.0595804]
[1641305319049,118.78905844,171.7,171.58,1.0595804]
[1641305321049,113.5557,171.7,171.58,1.0595804]
[1641305321954,15.64732303,171.69,171.58,1.0595804]
[1641305322354,8.4,171.68,171.58,1.0595804]
[1641305322552,32.2119,171.68,171.58,1.0595804]
[1641305322752,32.7119,171.68,171.52,34.4591]
[1641305323052,1.2665,171.67,171.53,2.83920514]
[1641305323453,2.0265,171.67,171.53,2.83920514]
[1641305323855,21.09862685,171.67,171.53,27.36371527]
[1641305324252,2.0265,171.67,171.53,27.36371527]
[1641305325353,18.89395868,171.66,171.53,27.36371527]
[1641305325553,27.55395868,171.66,171.53,2.83920514]
[1641305325753,28.05395868,171.66,171.53,2.83920514]
[1641305326458,1.2598,171.65,171.53,2.83920514]
[1641305326853,2.0198,171.65,171.53,2.83920514]
[1641305327757,8.4,171.64,171.47,24.4558]
[1641305327959,55.708,171.64,171.47,24.4558]
[1641305328157,55.968,171.64,171.47,24.4558]
[1641305328657,130.6765,171.64,171.48,31.18892114]
[1641305328857,130.6765,171.64,171.48,34.035738]
[1641305329258,1.3379,171.63,171.48,34.035738]
[1641305329458,9.44266558,171.62,171.48,34.035738]
[1641305329860,10.20266558,171.62,171.48,34.035738]
[1641305330361,1.2491,171.61,171.48,34.035738]
[1641305330560,1.5091,171.61,171.48,34.035738]
[1641305330760,2.0091,171.61,171.48,34.035738]
[1641305333462,26.3488,171.61,171.48,34.035738]
[1641305334065,26.3488,171.61,171.46,9.6995]
[1641305334262,26.3488,171.61,171.46,8.4]
[1641305334465,8.4,171.6,171.43,58.7351]
[1641305334663,8.4,171.6,171.44,1.2388]
[1641305334865,9.16,171.6,171.44,1.2388]
[1641305335099,9.16,171.6,171.45,31.57914615]
[1641305336198,1.2718,171.59,171.45,31.57914615]
[1641305336497,10.4318,171.59,171.45,31.57914615]
[1641305336900,24.8436,171.58,171.45,31.57914615]
[1641305337098,25.1036,171.58,171.45,31.57914615]
[1641305337299,25.6036,171.58,171.45,31.57914615]
[1641305338100,1.2458,171.57,171.45,31.57914615]
[1641305338499,2.0058,171.57,171.45,31.57914615]
[1641305339602,2.0058,171.57,171.45,2.35442926]
[1641305340503,2.0058,171.57,171.41,8.4]
[1641305340902,8.4,171.56,171.41,8.4]
[1641305341201,1.04266558,171.54,171.41,8.4]
[1641305341403,1.54266558,171.54,171.42,2.73223912]
[1641305341602,1.80266558,171.54,171.42,2.73223912]
[1641305341807,3.11206558,171.54,171.42,2.73223912]
[1641305342001,2.0694,171.54,171.42,2.73223912]
[1641305344902,1.8094,171.54,171.42,2.73223912]
[1641305346101,1.8094,171.54,171.42,4.09553912]
[1641305346305,2.0694,171.54,171.42,4.09553912]
[1641305347406,1.21637882,171.53,171.42,4.09553912]
[1641305347609,1.47637882,171.53,171.42,2.73223912]
[1641305347806,1.97637882,171.53,171.41,23.6829]
[1641305348808,1.97637882,171.53,171.41,26.13345822]
[1641305349208,8.04677941,171.53,171.41,26.13345822]
[1641305350011,6.83040059,171.53,171.41,26.13345822]
[1641305350613,15.23040059,171.53,171.41,26.13345822]
[1641305351212,1.2774,171.52,171.41,26.13345822]
[1641305351413,1.7774,171.52,171.41,26.13345822]
[1641305351613,2.0374,171.52,171.41,26.13345822]
[1641305354448,1.5374,171.52,171.41,26.13345822]
[1641305355048,9.9374,171.52,171.41,26.13345822]
[1641305356549,11.06088826,171.52,171.41,26.13345822]
[1641305356948,10.4374,171.52,171.41,26.13345822]
[1641305357448,10.4374,171.52,171.41,23.6829]
[1641305357651,10.4374,171.52,171.37,24.7813]
[1641305357851,1.42669368,171.51,171.35,77.0878]
[1641305358048,8.4,171.5,171.35,77.0878]
[1641305358249,98.9379,171.49,171.35,77.0878]
[1641305358453,8.4,171.48,171.35,77.0878]
[1641305358750,24.3775,171.47,171.36,2.77979799]
[1641305358951,8.4,171.46,171.36,2.77979799]
[1641305359952,1.64649263,171.47,171.36,2.77979799]
[1641305360150,1.64649263,171.47,171.36,3.03979799]
[1641305360350,2.14649263,171.47,171.36,3.03979799]
[1641305360550,2.40649263,171.47,171.36,2.77979799]
[1641305360754,0.76,171.47,171.36,2.77979799]
[1641305360953,0.26,171.47,171.36,2.77979799]
[1641305361155,9.16,171.49,171.36,2.77979799]
[1641305361356,9.16,171.49,171.36,26.70759799]
[1641305361955,9.16,171.49,171.37,1.3588]
[1641305363857,2.45161118,171.48,171.39,2.27074367]
[1641305364058,8.4,171.47,171.39,2.27074367]
[1641305364258,9.82669368,171.47,171.39,2.27074367]
[1641305364459,10.32669368,171.47,171.39,2.27074367]
[1641305364757,9.16,171.47,171.39,2.27074367]
[1641305365363,9.16,171.47,171.39,28.6274363]
[1641305366759,8.9,171.47,171.39,28.6274363]
[1641305368158,9.16,171.47,171.39,28.6274363]
[1641305368360,9.16,171.47,171.39,2.27074367]
[1641305368960,10.58669368,171.47,171.39,2.27074367]
[1641305369762,9.16,171.47,171.39,2.27074367]
[1641305370164,10.58669368,171.47,171.39,2.27074367]
[1641305371272,10.32669368,171.47,171.45,1.1708914]
[1641305371566,6.06439994,171.46,171.45,1.1708914]
[1641305371864,14.96439994,171.46,171.45,1.1708914]
[1641305372066,14.96439994,171.46,171.45,1.60627275]
[1641305372466,15.22439994,171.46,171.45,1.60627275]
[1641305375066,14.96439994,171.46,171.45,1.60627275]
[1641305376370,6.82439994,171.46,171.45,1.60627275]
[1641305376969,6.56439994,171.46,171.45,1.60627275]
[1641305377569,0.02,171.47,171.45,1.60627275]
[1641305380272,0.02,171.47,171.46,28.33495435]
[1641305381276,32.0374,171.57,171.46,28.33495435]
[1641305381878,0.02,171.48,171.46,28.33495435]
[1641305386383,0.02,171.48,171.46,28.83495435]
[1641305386984,0.02,171.48,171.47,2.34056685]
[1641305388405,0.02,171.48,171.47,3.68196685]
[1641305389407,1.90611564,171.58,171.47,3.68196685]
[1641305389609,0.02,171.49,171.47,3.68196685]
[1641305390309,0.02,171.49,171.47,28.36886685]
[1641305391009,0.02,171.49,171.47,26.0283]
[1641305394413,0.02,171.49,171.47,24.6869]
[1641305394612,3.05219997,171.49,171.47,24.6869]
[1641305394813,0.02,171.49,171.45,1.60627275]
[1641305395015,0.28,171.49,171.45,1.60627275]
[1641305395514,0.02,171.49,171.45,1.60627275]
[1641305405125,8.42,171.49,171.45,1.60627275]
[1641305405526,9.18,171.49,171.45,1.60627275]
[1641305407331,10.60669368,171.49,171.45,1.60627275]
[1641305408131,9.18,171.49,171.45,1.60627275]
[1641305410134,10.60669368,171.49,171.45,1.60627275]
[1641305411135,9.18,171.49,171.45,1.60627275]
[1641305413035,10.60669368,171.49,171.45,1.60627275]
[1641305413536,9.18,171.49,171.45,1.60627275]
[1641305413757,8.92,171.49,171.45,1.60627275]
[1641305414160,0.02,171.49,171.45,1.60627275]
[1641305414559,0.02,171.49,171.46,23.49532554]
[1641305421977,6.06439994,171.48,171.46,23.49532554]
[1641305422477,0.02,171.49,171.46,23.49532554]
[1641305424174,6.06439994,171.48,171.46,23.49532554]
[1641305424676,1.99,171.47,171.46,23.49532554]
[1641305426477,0.02,171.48,171.46,24.25532554]
[1641305426977,0.02,171.48,171.47,25.8627]
[1641305427379,0.02,171.48,171.47,26.6227]
[1641305427880,1.64611564,171.6,171.47,26.6227]
[1641305428682,1.64611564,171.62,171.47,26.6227]
[1641305428884,2.14611564,171.62,171.47,26.6227]
[1641305429381,2.40611564,171.62,171.47,26.6227]
[1641305430182,0.76,171.62,171.48,8.4]
[1641305430382,2.14611564,171.64,171.49,25.72891997]
[1641305430582,2.14611564,171.64,171.5,1.2818]
[1641305430882,0.5,171.64,171.5,1.7818]
[1641305431082,0.5,171.64,171.5,2.0418]
[1641305431283,10.54611564,171.65,171.5,2.0418]
[1641305431883,10.80611564,171.65,171.5,2.0418]
[1641305433212,10.80611564,171.65,171.6,1.1708914]
[1641305433512,9.16,171.65,171.6,1.1708914]
[1641305433712,9.16,171.65,171.6,1.60627275]
[1641305435515,10.80611564,171.65,171.6,1.60627275]
[1641305438221,9.16,171.65,171.6,1.60627275]
[1641305439221,10.80611564,171.65,171.6,1.60627275]
[1641305440624,9.16,171.65,171.6,1.60627275]
[1641305441025,9.16,171.65,171.6,2.66585315]
[1641305446129,1.64611564,171.64,171.6,2.66585315]
[1641305446331,2.14611564,171.64,171.6,2.66585315]
[1641305446531,2.40611564,171.64,171.6,2.66585315]
[1641305446929,0.76,171.64,171.6,2.66585315]
[1641305447329,10.80611564,171.65,171.6,2.66585315]
[1641305448731,9.16,171.65,171.6,2.66585315]
[1641305449431,1.64611564,171.64,171.6,2.66585315]
[1641305449832,2.40611564,171.64,171.6,2.66585315]
[1641305450734,8.4,171.63,171.6,2.66585315]
[1641305450935,6.06439994,171.62,171.6,2.66585315]
[1641305451337,6.82439994,171.62,171.6,2.66585315]
[1641305455240,8.47051558,171.62,171.6,2.66585315]
[1641305455443,78.4,171.61,171.6,2.66585315]
[1641305455640,8.4,171.61,171.6,2.66585315]
[1641305455841,9.16,171.61,171.6,2.66585315]
[1641305456841,8.9,171.61,171.6,2.66585315]
[1641305457043,10.54611564,171.61,171.6,2.66585315]
[1641305457441,2.14611564,171.61,171.6,2.66585315]
[1641305457642,6.08439994,171.62,171.6,2.66585315]
[1641305457844,0.02,171.62,171.6,7.66185315]
[1641305458866,0.02,171.62,171.6,32.98937893]
[1641305466674,0.02,171.62,171.6,27.99337893]
[1641305472286,6.06439994,171.61,171.6,2.66585315]
[1641305472886,6.32439994,171.61,171.6,2.66585315]
[1641305473491,0.26,171.61,171.6,2.66585315]
[1641305473689,0.76,171.61,171.6,2.66585315]
[1641305473888,6.32439994,171.61,171.6,2.66585315]
[1641305474090,0.26,171.61,171.6,2.66585315]
[1641305475188,6.32439994,171.61,171.6,2.66585315]
[1641305475390,6.82439994,171.61,171.6,2.66585315]
[1641305483405,6.06439994,171.61,171.6,2.66585315]
[1641305483806,3.29219997,171.61,171.6,2.66585315]
[1641305484006,0.26,171.61,171.6,2.66585315]
[1641305488132,0.02,171.62,171.6,2.66585315]
[1641305488533,0.02,171.62,171.61,2.34300964]
[1641305489334,6.57013469,171.67,171.61,2.34300964]
[1641305489538,6.83013469,171.67,171.61,2.34300964]
[1641305489832,0.02,171.63,171.61,2.34300964]
[1641305490032,6.06439994,171.62,171.61,2.34300964]
[1641305490238,0.02,171.63,171.61,2.34300964]
[1641305492937,0.02,171.63,171.6,2.66585315]
[1641305496447,6.06439994,171.62,171.6,2.66585315]
[1641305496843,6.32439994,171.62,171.6,2.66585315]
[1641305497042,6.06439994,171.62,171.6,2.66585315]
[1641305497847,6.32439994,171.62,171.6,2.66585315]
[1641305502656,6.06439994,171.62,171.6,2.66585315]
[1641305503055,0.02,171.63,171.6,2.66585315]
[1641305504478,0.02,171.63,171.6,2.92585315]
[1641305504880,0.02,171.63,171.6,3.42585315]
[1641305505678,0.02,171.63,171.6,2.92585315]
[1641305514390,0.02,171.63,171.6,3.42585315]
[1641305514589,0.02,171.63,171.6,2.92585315]
[1641305514890,0.02,171.63,171.61,1.3629]
[1641305515190,0.02,171.63,171.62,29.78292426]
[1641305517289,2.0112,171.71,171.62,29.78292426]
[1641305517890,0.02,171.64,171.62,29.78292426]
[1641305518696,0.02,171.64,171.6,2.66585315]
[1641305520297,8.42,171.64,171.6,2.66585315]
[1641305520494,79.0,171.63,171.6,5.315e-05]
[1641305520696,6.06439994,171.62,171.6,5.315e-05]
[1641305520896,30.71429994,171.62,171.6,5.315e-05]
[1641305521097,30.97429994,171.62,171.6,5.315e-05]
[1641305524301,6.82439994,171.62,171.6,5.315e-05]
[1641305525502,6.32439994,171.62,171.6,5.315e-05]
[1641305526904,6.82439994,171.62,171.6,5.315e-05]
[1641305527506,6.32439994,171.62,171.6,5.315e-05]
[1641305528507,6.06439994,171.62,171.6,5.315e-05]
[1641305532136,6.56439994,171.62,171.6,5.315e-05]
[1641305532737,6.06439994,171.62,171.6,5.315e-05]
[1641305532937,6.32439994,171.62,171.6,5.315e-05]
[1641305535942,6.82439994,171.62,171.6,5.315e-05]
[1641305538746,102.8198,171.61,171.6,5.315e-05]
[1641305538944,25.3198,171.61,171.6,5.315e-05]
[1641305539143,25.5798,171.61,171.6,5.315e-05]
[1641305539550,26.845,171.61,171.6,5.315e-05]
[1641305542353,26.845,171.61,171.6,2.47190815]
[1641305542555,0.76,171.61,171.6,2.47190815]
[1641305543155,0.76,171.61,171.6,3.53035285]
[1641305545464,86.16,171.61,171.46,34.3614]
[1641305545662,22.6329,171.6,171.46,34.3614]
[1641305545864,1.3391,171.59,171.46,35.1214]
[1641305546064,1.5991,171.59,171.46,35.1214]
[1641305546262,2.0991,171.59,171.46,35.1214]
[1641305546463,2.0991,171.59,171.47,28.86098246]
[1641305546963,2.0991,171.59,171.48,23.1929]
[1641305547362,2.0991,171.59,171.48,23.4529]
[1641305551690,2.0991,171.59,171.48,0.26]
[1641305552090,2.0991,171.59,171.47,29.12098246]
[1641305553293,2.0991,171.59,171.48,22.973]
[1641305553493,2.0991,171.59,171.48,23.233]
[1641305554893,2.0991,171.59,171.57,1.0605523]
[1641305555093,6.06439994,171.58,171.57,1.0605523]
[1641305555493,6.82439994,171.58,171.57,3.5394921]
[1641305556193,6.82439994,171.58,171.43,9.7602]
[1641305556394,79.0,171.57,171.44,23.5051]
[1641305556594,1.2626,171.56,171.44,23.0051]
[1641305556996,25.6894,171.56,171.45,27.36580826]
[1641305557195,25.6894,171.56,171.46,31.85145396]
[1641305558097,25.6894,171.56,171.39,15.20835788]
[1641305558098,8.4,171.55,171.39,15.20835788]
[1641305558500,9.16,171.55,171.39,15.70835788]
[1641305558900,9.16,171.55,171.4,27.50530797]
[1641305558901,98.75,171.54,171.4,27.50530797]
[1641305559100,99.01,171.54,171.4,29.94561079]
[1641305559300,99.51,171.54,171.4,29.94561079]
[1641305559500,1.2424,171.53,171.4,29.94561079]
[1641305559902,2.0024,171.53,171.4,29.94561079]
[1641305561007,2.0024,171.53,171.4,30.20561079]
[1641305561404,2.0024,171.53,171.4,32.01361079]
[1641305561804,2.0024,171.53,171.4,31.51361079]
[1641305563109,2.0024,171.53,171.4,41.76103698]
[1641305563304,0.5,171.53,171.4,43.68773066]
[1641305563607,0.26,171.55,171.4,52.08773066]
[1641305563805,0.26,171.55,171.41,23.3053]
[1641305564005,0.26,171.55,171.41,23.5653]
[1641305564205,8.66,171.57,171.41,24.0653]
[1641305565006,8.4,171.57,171.42,1.3146]
[1641305565505,8.4,171.57,171.42,2.0746]
[1641305565708,10.0688,171.58,171.43,8.4]
[1641305565907,10.5688,171.58,171.44,24.3255]
[1641305566109,10.5688,171.58,171.44,24.5855]
[1641305566309,10.5688,171.58,171.44,25.0855]
[1641305566507,23.7897,171.57,171.46,2.87059362]
[1641305566907,24.5497,171.57,171.46,2.87059362]
[1641305567206,24.0497,171.57,171.46,2.87059362]
[1641305567407,24.0497,171.57,171.46,3.63059362]
[1641305567607,23.7897,171.57,171.47,29.81022732]
[1641305568008,23.7897,171.57,171.47,30.57022732]
[1641305568410,24.2897,171.57,171.47,30.57022732]
[1641305569111,24.5497,171.57,171.47,30.57022732]
[1641305569410,24.0497,171.57,171.47,30.57022732]
[1641305573213,24.5497,171.57,171.47,30.57022732]
[1641305573414,24.5497,171.57,171.47,30.07022732]
[1641305574716,24.5497,171.57,171.55,1.0630261]
[1641305574917,6.06439994,171.56,171.55,1.0630261]
[1641305575343,6.32439994,171.56,171.55,1.0630261]
[1641305575744,0.02,171.59,171.55,1.0630261]
[1641305575950,0.02,171.59,171.55,6.2790261]
[1641305576349,0.02,171.59,171.55,6.7790261]
[1641305577251,100.2275,171.67,171.55,8.0208261]
[1641305577553,100.4875,171.67,171.55,3.0648261]
[1641305577751,100.9875,171.67,171.55,3.0648261]
[1641305580656,100.9875,171.67,171.55,5.5517184]
[1641305582256,100.9875,171.67,171.55,5.0517184]
[1641305582456,100.9875,171.67,171.55,4.7917184]
[1641305582658,102.41419368,171.67,171.55,3.5499184]
[1641305582865,8.4,171.66,171.55,3.5499184]
[1641305583156,8.66,171.66,171.55,3.5499184]
[1641305583360,9.16,171.66,171.55,3.5499184]
[1641305583558,10.58669368,171.66,171.55,3.5499184]
[1641305584161,10.58669368,171.66,171.65,1.0630261]
[1641305584359,16.65109362,171.66,171.55,2.4868923]
[1641305584562,18.29720926,171.66,171.55,2.4868923]
[1641305587568,16.65109362,171.66,171.55,2.4868923]
[1641305590772,16.39109362,171.66,171.55,2.4868923]
[1641305591468,16.39109362,171.66,171.65,2.4868923]
[1641305591672,73.0,171.65,171.53,24.62556107]
[1641305591869,8.4,171.64,171.53,24.62556107]
[1641305592071,10.08669368,171.64,171.53,24.62556107]
[1641305592271,10.58669368,171.64,171.53,24.62556107]
[1641305593072,1.42669368,171.63,171.47,9.7091]
[1641305593374,11.97280932,171.63,171.47,1.3091]
[1641305593571,12.23280932,171.63,171.43,9.6732]
[1641305593797,27.49939368,171.62,171.44,24.2478]
[1641305593995,27.49939368,171.62,171.45,33.27892586]
[1641305593996,8.4,171.61,171.45,33.27892586]
[1641305594397,24.6672,171.6,171.45,33.53892586]
[1641305594598,105.8781,171.6,171.45,33.53892586]
[1641305594797,106.3781,171.6,171.45,33.53892586]
[1641305595096,1.3311,171.59,171.45,33.53892586]
[1641305595395,1.8311,171.59,171.45,33.53892586]
[1641305595597,2.0911,171.59,171.45,57.96332586]
[1641305596198,1.8311,171.59,171.46,1.2552]
[1641305596399,1.8311,171.59,171.46,0.7552]
[1641305597599,2.0911,171.59,171.46,0.7552]
[1641305599704,2.0911,171.59,171.45,57.96332586]
[1641305602208,2.0911,171.59,171.45,58.46332586]
[1641305602409,2.0911,171.59,171.45,57.96332586]
[1641305603211,2.0911,171.59,171.45,58.46332586]
[1641305605615,0.5,171.59,171.46,9.6728]
[1641305605815,72.5509,171.6,171.46,17.6858]
[1641305606116,73.0509,171.6,171.46,28.19322619]
[1641305606316,73.0509,171.6,171.47,22.5907]
[1641305606617,73.0509,171.6,171.48,8.4]
[1641305606815,73.0509,171.6,171.48,8.9]
[1641305607018,73.3109,171.6,171.48,9.16]
[1641305608016,73.3109,171.6,171.48,10.4652]
[1641305609318,53.5546,171.64,171.48,18.26189368]
[1641305609520,53.8146,171.64,171.49,23.9833]
[1641305609715,54.3146,171.64,171.49,23.9833]
[1641305609916,54.3146,171.64,171.49,24.7433]
[1641305610117,54.3146,171.64,171.49,33.1433]
[1641305610417,53.8146,171.64,171.49,33.1433]
[1641305610915,53.8146,171.64,171.51,2.96111422]
[1641305611117,53.8146,171.64,171.51,3.22111422]
[1641305611316,53.8146,171.64,171.52,25.30080602]
[1641305611517,53.8146,171.64,171.52,25.56080602]
[1641305611717,53.8146,171.64,171.52,27.35050602]
[1641305611917,54.3146,171.64,171.52,27.35050602]
[1641305613419,54.3146,171.64,171.57,5.39425253]
[1641305613822,54.3146,171.64,171.57,6.14894903]
[1641305614021,9.16,171.64,171.57,6.14894903]
[1641305614222,0.76,171.64,171.57,6.40894903]
[1641305614422,0.26,171.64,171.57,6.40894903]
[1641305614624,2.0567,171.66,171.57,6.40894903]
[1641305615224,2.0567,171.66,171.57,3.91661583]
[1641305618725,2.0567,171.66,171.57,0.7546965]
[1641305619926,2.0567,171.66,171.57,3.54628522]
[1641305621951,3.48339368,171.66,171.57,3.54628522]
[1641305622355,3.48339368,171.66,171.57,0.7546965]
[1641305622754,8.4,171.65,171.57,0.7546965]
[1641305622953,9.16,171.65,171.57,0.7546965]
[1641305623155,25.29069368,171.64,171.57,0.7546965]
[1641305623354,25.79069368,171.64,171.57,0.7546965]
[1641305623557,26.05069368,171.64,171.57,0.7546965]
[1641305623757,27.30629368,171.64,171.57,0.7546965]
[1641305624356,1.42669368,171.63,171.57,0.7546965]
[1641305624557,1.68669368,171.63,171.57,0.7546965]
[1641305624757,0.76,171.63,171.57,0.7546965]
[1641305625156,1.92669368,171.63,171.57,0.7546965]
[1641305625357,2.18669368,171.63,171.57,0.7546965]
[1641305625756,2.18669368,171.63,171.55,2.36273941]
[1641305625757,1.43199718,171.63,171.55,2.36273941]
[1641305626958,0.26,171.63,171.55,2.36273941]
[1641305627561,25.8796,171.64,171.55,2.36273941]
[1641305628662,25.8796,171.64,171.52,26.60760602]
[1641305629763,25.8796,171.64,171.53,2.3826846]
[1641305631464,27.30629368,171.64,171.53,2.3826846]
[1641305632467,27.30629368,171.64,171.52,1.3068]
[1641305632669,107.01349368,171.64,171.52,1.3068]
[1641305633467,107.01349368,171.64,171.53,2.73682485]
[1641305633668,108.65960932,171.64,171.53,2.73682485]
[1641305634166,107.01349368,171.64,171.53,2.73682485]
[1641305636174,6.07317244,171.63,171.53,2.73682485]
[1641305636373,6.57317244,171.63,171.53,2.73682485]
[1641305636574,6.83317244,171.63,171.53,2.73682485]
[1641305637476,1.3588,171.62,171.53,2.73682485]
[1641305637874,1.8588,171.62,171.53,2.73682485]
[1641305638801,2.1188,171.62,171.53,2.73682485]
[1641305642278,8.4,171.67,171.64,23.632428]
[1641305642478,6.06439994,171.66,171.64,23.632428]
[1641305644482,6.82439994,171.66,171.64,23.632428]
[1641305644779,44.42669368,171.65,171.64,23.632428]
[1641305644982,45.18669368,171.65,171.64,23.632428]
[1641305645280,2.18669368,171.65,171.64,23.632428]
[1641305645780,3.83280932,171.65,171.64,23.632428]
[1641305645982,2.40611564,171.65,171.64,23.632428]
[1641305646382,0.76,171.65,171.64,23.632428]
[1641305646781,0.5,171.65,171.64,23.632428]
[1641305647482,7.71051558,171.66,171.64,23.632428]
[1641305647883,6.06439994,171.66,171.64,23.632428]
[1641305648086,6.32439994,171.66,171.64,23.632428]
[1641305648886,6.82439994,171.66,171.64,23.632428]
[1641305652588,8.47051558,171.66,171.64,23.632428]
[1641305652788,87.4,171.65,171.64,23.632428]
[1641305652989,23.63,171.64,171.52,96.9023]
[1641305653193,23.63,171.64,171.53,1.2635]
[1641305653488,24.39,171.64,171.53,1.2635]
[1641305653910,1.328,171.63,171.53,1.2635]
[1641305654111,1.588,171.63,171.53,3.80051528]
[1641305654311,2.088,171.63,171.53,3.80051528]
[1641305656514,10.488,171.63,171.53,3.80051528]
[1641305656716,2.088,171.63,171.53,3.80051528]